[Event "Titled Tuesday Blitz May 03 Early 2022"]
[White "Halvax, Georg"]
[Black "Kotepalli, Sai Nirupama"]
[WhiteFideId "1619543"]
[BlackFideId "5039444"]
[WhiteElo "2403"]
[BlackElo "2401"]
[Result "1-0"]
[Round "03"]
[TimeControl "180+1"]
[Date "2022.05.03"]
[WhiteClock "0:00:55"]
[BlackClock "0:00:06"]

1. d4 {[%clk 0:03:00]}  g6 {[%clk 0:02:57]} 2. c4 {[%clk 0:03:00]}  Bg7 {[%clk 0:02:57]} 3. Nc3 {[%clk 0:03:01]}  d6 {[%clk 0:02:54]} 4. e4 {[%clk 0:03:01]}  Nf6 {[%clk 0:02:53]} 5. Be2 {[%clk 0:03:00]}  O-O {[%clk 0:02:52]} 6. Be3 {[%clk 0:03:01]}  Nfd7 {[%clk 0:02:50]} 7. h4 {[%clk 0:02:59]}  h5 {[%clk 0:02:40]} 8. g4 {[%clk 0:03:00]}  hxg4 {[%clk 0:02:38]} 9. h5 {[%clk 0:03:00]}  Nf6 {[%clk 0:02:33]} 10. hxg6 {[%clk 0:02:57]}  fxg6 {[%clk 0:02:32]} 11. Qd2 {[%clk 0:02:56]}  e5 {[%clk 0:01:59]} 12. O-O-O {[%clk 0:02:47]}  exd4 {[%clk 0:01:55]} 13. Bxd4 {[%clk 0:02:44]}  Nc6 {[%clk 0:01:53]} 14. Be3 {[%clk 0:02:42]}  Be6 {[%clk 0:01:49]} 15. f3 {[%clk 0:02:38]}  Ne5 {[%clk 0:01:45]} 16. f4 {[%clk 0:02:37]}  Nxc4 {[%clk 0:01:43]} 17. Bxc4 {[%clk 0:02:37]}  Bxc4 {[%clk 0:01:42]} 18. Qh2 {[%clk 0:02:37]}  Nh5 {[%clk 0:01:33]} 19. Nge2 {[%clk 0:02:23]}  b5 {[%clk 0:01:22]} 20. f5 {[%clk 0:02:18]}  Bf7 {[%clk 0:01:15]} 21. Nf4 {[%clk 0:02:06]}  Qg5 {[%clk 0:01:02]} 22. Nfd5 {[%clk 0:01:50]}  Qd8 {[%clk 0:00:58]} 23. Rdg1 {[%clk 0:01:43]}  Be5 {[%clk 0:00:29]} 24. Qf2 {[%clk 0:01:26]}  g3 {[%clk 0:00:28]} 25. Qe2 {[%clk 0:01:22]}  c6 {[%clk 0:00:20]} 26. Qg4 {[%clk 0:01:11]}  cxd5 {[%clk 0:00:08]} 27. fxg6 {[%clk 0:01:05]}  Nf6 {[%clk 0:00:08]} 28. gxf7+ {[%clk 0:00:57]}  Kxf7 {[%clk 0:00:09]} 29. Qf5 {[%clk 0:00:57]}  d4 {[%clk 0:00:09]} 30. Rh7+ {[%clk 0:00:55]}  Ke8 {[%clk 0:00:06]} 31. Qe6+ {[%clk 0:00:55]} 1-0


[Site "https://www.chess.com"]

[Event "Titled Tuesday Blitz May 03 Early 2022"]
[White "Hansch, Karsten"]
[Black "Itkis, Boris"]
[WhiteFideId "24692239"]
[BlackFideId "1209167"]
[WhiteElo "2358"]
[BlackElo "2207"]
[Result "0-1"]
[Round "03"]
[TimeControl "180+1"]
[Date "2022.05.03"]
[WhiteClock "0:01:39"]
[BlackClock "0:00:20"]

1. e4 {[%clk 0:03:00]}  c5 {[%clk 0:02:58]} 2. Nf3 {[%clk 0:03:00]}  Nc6 {[%clk 0:02:59]} 3. Bc4 {[%clk 0:02:59]}  g6 {[%clk 0:02:58]} 4. c3 {[%clk 0:02:58]}  Bg7 {[%clk 0:02:58]} 5. d4 {[%clk 0:02:59]}  cxd4 {[%clk 0:02:53]} 6. cxd4 {[%clk 0:02:59]}  d6 {[%clk 0:02:53]} 7. h3 {[%clk 0:02:58]}  Nf6 {[%clk 0:02:53]} 8. Nc3 {[%clk 0:02:57]}  O-O {[%clk 0:02:52]} 9. O-O {[%clk 0:02:57]}  a6 {[%clk 0:02:52]} 10. a4 {[%clk 0:02:56]}  Qc7 {[%clk 0:02:49]} 11. Be3 {[%clk 0:02:49]}  Bd7 {[%clk 0:02:40]} 12. Rc1 {[%clk 0:02:47]}  Rac8 {[%clk 0:02:39]} 13. e5 {[%clk 0:02:40]}  dxe5 {[%clk 0:02:29]} 14. dxe5 {[%clk 0:02:38]}  Nxe5 {[%clk 0:02:26]} 15. Nd5 {[%clk 0:02:28]}  Nxd5 {[%clk 0:02:21]} 16. Bxd5 {[%clk 0:02:29]}  Nxf3+ {[%clk 0:02:17]} 17. Qxf3 {[%clk 0:02:28]}  Qd6 {[%clk 0:02:16]} 18. Bxb7 {[%clk 0:02:27]}  Rxc1 {[%clk 0:02:14]} 19. Rxc1 {[%clk 0:02:27]}  Qb4 {[%clk 0:02:04]} 20. Bc6 {[%clk 0:02:20]}  Bxc6 {[%clk 0:02:01]} 21. Rxc6 {[%clk 0:02:20]}  Qxa4 {[%clk 0:01:59]} 22. b3 {[%clk 0:02:19]}  Qb5 {[%clk 0:01:34]} 23. Rb6 {[%clk 0:02:18]}  Qa5 {[%clk 0:01:29]} 24. Qb7 {[%clk 0:02:13]}  Be5 {[%clk 0:01:16]} 25. Qxa6 {[%clk 0:02:12]}  Qxa6 {[%clk 0:00:49]} 26. Rxa6 {[%clk 0:02:12]}  Rb8 {[%clk 0:00:50]} 27. Rb6 {[%clk 0:02:12]}  Rxb6 {[%clk 0:00:43]} 28. Bxb6 {[%clk 0:02:13]}  Kf8 {[%clk 0:00:44]} 29. Kf1 {[%clk 0:02:13]}  Ke8 {[%clk 0:00:44]} 30. Ke2 {[%clk 0:02:13]}  Kd7 {[%clk 0:00:45]} 31. Kd3 {[%clk 0:02:14]}  Kc6 {[%clk 0:00:46]} 32. Be3 {[%clk 0:02:15]}  Kb5 {[%clk 0:00:45]} 33. Bd2 {[%clk 0:02:13]}  Bd6 {[%clk 0:00:43]} 34. g4 {[%clk 0:02:09]}  Bc5 {[%clk 0:00:38]} 35. f4 {[%clk 0:02:09]}  Bd6 {[%clk 0:00:39]} 36. Kd4 {[%clk 0:02:08]}  Ba3 {[%clk 0:00:35]} 37. Kd5 {[%clk 0:02:07]}  Bb2 {[%clk 0:00:34]} 38. Be3 {[%clk 0:01:59]}  Kb4 {[%clk 0:00:23]} 39. Bc5+ {[%clk 0:01:59]}  Kxb3 {[%clk 0:00:23]} 40. Bxe7 {[%clk 0:02:00]}  Kc2 {[%clk 0:00:22]} 41. Bd6 {[%clk 0:01:58]}  Kd3 {[%clk 0:00:20]} 42. Kc6 {[%clk 0:01:48]}  Ke4 {[%clk 0:00:20]} 43. Kd7 {[%clk 0:01:48]}  f5 {[%clk 0:00:19]} 44. gxf5 {[%clk 0:01:44]}  Kxf5 {[%clk 0:00:20]} 45. Kc6 {[%clk 0:01:43]}  Bc1 {[%clk 0:00:21]} 46. Kd5 {[%clk 0:01:42]}  Bxf4 {[%clk 0:00:20]} 47. Be7 {[%clk 0:01:43]}  h5 {[%clk 0:00:20]} 48. Kd4 {[%clk 0:01:43]}  g5 {[%clk 0:00:20]} 49. Bxg5 {[%clk 0:01:38]}  Kxg5 {[%clk 0:00:19]} 50. Kd3 {[%clk 0:01:39]}  Kh4 {[%clk 0:00:20]} 51. Ke2 {[%clk 0:01:39]}  Kxh3 {[%clk 0:00:20]} 52. Kf1 {[%clk 0:01:39]}  Be3 {[%clk 0:00:19]} 53. Ke2 {[%clk 0:01:39]}  Kg2 {[%clk 0:00:20]} 0-1


[Site "https://www.chess.com"]

[Event "Titled Tuesday Blitz May 03 Early 2022"]
[White "Horcajuelo Rocamora, Martin"]
[Black "Taboas Rodriguez, Daniel"]
[WhiteFideId "24573027"]
[BlackFideId "2208466"]
[WhiteElo "1822"]
[BlackElo "2429"]
[Result "0-1"]
[Round "03"]
[TimeControl "180+1"]
[Date "2022.05.03"]
[WhiteClock "0:00:10"]
[BlackClock "0:00:47"]

1. e4 {[%clk 0:03:00]}  e6 {[%clk 0:02:59]} 2. d4 {[%clk 0:03:00]}  d5 {[%clk 0:03:00]} 3. exd5 {[%clk 0:03:00]}  exd5 {[%clk 0:03:00]} 4. Bd3 {[%clk 0:03:00]}  Nf6 {[%clk 0:03:01]} 5. Nf3 {[%clk 0:02:56]}  Bg4 {[%clk 0:03:02]} 6. Bf4 {[%clk 0:02:54]}  Bd6 {[%clk 0:03:01]} 7. Bxd6 {[%clk 0:02:52]}  Qxd6 {[%clk 0:03:01]} 8. Kf1 {[%clk 0:02:52]}  O-O {[%clk 0:03:01]} 9. h3 {[%clk 0:02:52]}  Bd7 {[%clk 0:02:50]} 10. g3 {[%clk 0:02:49]}  c5 {[%clk 0:02:50]} 11. c3 {[%clk 0:02:41]}  Nc6 {[%clk 0:02:50]} 12. dxc5 {[%clk 0:02:36]}  Qxc5 {[%clk 0:02:50]} 13. Nbd2 {[%clk 0:02:36]}  Rfe8 {[%clk 0:02:47]} 14. Kg2 {[%clk 0:02:35]}  Rad8 {[%clk 0:02:45]} 15. Nb3 {[%clk 0:02:34]}  Qb6 {[%clk 0:02:45]} 16. Qc2 {[%clk 0:02:30]}  Rc8 {[%clk 0:02:35]} 17. Qd2 {[%clk 0:02:20]}  Ne4 {[%clk 0:02:33]} 18. Qe3 {[%clk 0:02:02]}  Qc7 {[%clk 0:02:09]} 19. Qf4 {[%clk 0:01:49]}  Qxf4 {[%clk 0:02:02]} 20. gxf4 {[%clk 0:01:50]}  Re6 {[%clk 0:01:51]} 21. Bxe4 {[%clk 0:01:39]}  dxe4 {[%clk 0:01:45]} 22. Nfd4 {[%clk 0:01:37]}  Rg6+ {[%clk 0:01:45]} 23. Kh2 {[%clk 0:01:33]}  Re8 {[%clk 0:01:33]} 24. Rhg1 {[%clk 0:01:26]}  Rf6 {[%clk 0:01:30]} 25. Nxc6 {[%clk 0:01:13]}  Bxc6 {[%clk 0:01:29]} 26. Nd4 {[%clk 0:01:08]}  Rxf4 {[%clk 0:01:27]} 27. Kg3 {[%clk 0:01:08]}  Rf6 {[%clk 0:01:19]} 28. Rae1 {[%clk 0:00:56]}  Kf8 {[%clk 0:01:16]} 29. Re3 {[%clk 0:00:48]}  Rg6+ {[%clk 0:01:14]} 30. Kh2 {[%clk 0:00:47]}  Rxg1 {[%clk 0:01:14]} 31. Kxg1 {[%clk 0:00:48]}  g6 {[%clk 0:01:15]} 32. h4 {[%clk 0:00:45]}  f5 {[%clk 0:01:15]} 33. Ne2 {[%clk 0:00:45]}  Rd8 {[%clk 0:01:14]} 34. Nf4 {[%clk 0:00:44]}  Ke7 {[%clk 0:01:11]} 35. Re2 {[%clk 0:00:40]}  Kf6 {[%clk 0:01:11]} 36. Kh2 {[%clk 0:00:40]}  h6 {[%clk 0:01:11]} 37. Re3 {[%clk 0:00:17]}  g5 {[%clk 0:01:11]} 38. hxg5+ {[%clk 0:00:17]}  hxg5 {[%clk 0:01:12]} 39. Ne2 {[%clk 0:00:17]}  f4 {[%clk 0:01:12]} 40. Rh3 {[%clk 0:00:18]}  Rd2 {[%clk 0:01:09]} 41. Nd4 {[%clk 0:00:18]}  Rxf2+ {[%clk 0:01:07]} 42. Kg1 {[%clk 0:00:18]}  e3 {[%clk 0:01:07]} 43. Rh6+ {[%clk 0:00:19]}  Ke5 {[%clk 0:01:06]} 44. Re6+ {[%clk 0:00:17]}  Kd5 {[%clk 0:01:05]} 45. b3 {[%clk 0:00:17]}  Rxa2 {[%clk 0:01:03]} 46. Re7 {[%clk 0:00:15]}  g4 {[%clk 0:00:53]} 47. Rg7 {[%clk 0:00:13]}  f3 {[%clk 0:00:50]} 48. Rxg4 {[%clk 0:00:12]}  Ra1+ {[%clk 0:00:51]} 49. Kh2 {[%clk 0:00:13]}  e2 {[%clk 0:00:51]} 50. Rg5+ {[%clk 0:00:13]}  Ke4 {[%clk 0:00:50]} 51. Rg8 {[%clk 0:00:09]}  e1=Q {[%clk 0:00:47]} 52. Re8+ {[%clk 0:00:10]}  Bxe8 {[%clk 0:00:47]} 0-1


[Site "https://www.chess.com"]

[Event "Titled Tuesday Blitz May 03 Early 2022"]
[White "Hovhannisyan, Robert"]
[Black "Beerdsen, Thomas"]
[WhiteFideId "13302507"]
[BlackFideId "1030108"]
[WhiteElo "2570"]
[BlackElo "2585"]
[Result "1-0"]
[Round "03"]
[TimeControl "180+1"]
[Date "2022.05.03"]
[WhiteClock "0:00:06"]
[BlackClock "0:00:06"]

1. Nc3 {[%clk 0:03:00]}  c5 {[%clk 0:02:57]} 2. Nf3 {[%clk 0:02:59]}  Nc6 {[%clk 0:02:56]} 3. d4 {[%clk 0:02:59]}  cxd4 {[%clk 0:02:56]} 4. Nxd4 {[%clk 0:03:00]}  Nf6 {[%clk 0:02:56]} 5. g3 {[%clk 0:02:51]}  h5 {[%clk 0:02:56]} 6. Bg2 {[%clk 0:02:49]}  h4 {[%clk 0:02:56]} 7. Bg5 {[%clk 0:02:46]}  Qb6 {[%clk 0:02:48]} 8. Nxc6 {[%clk 0:02:31]}  dxc6 {[%clk 0:02:43]} 9. O-O {[%clk 0:01:59]}  Qxb2 {[%clk 0:02:33]} 10. Qd3 {[%clk 0:01:54]}  hxg3 {[%clk 0:02:26]} 11. hxg3 {[%clk 0:01:55]}  Qb4 {[%clk 0:02:01]} 12. Rfd1 {[%clk 0:01:40]}  Qd6 {[%clk 0:01:29]} 13. Qf3 {[%clk 0:01:24]}  Bg4 {[%clk 0:01:18]} 14. Qe3 {[%clk 0:01:12]}  Qe6 {[%clk 0:01:16]} 15. Rab1 {[%clk 0:01:06]}  Qxe3 {[%clk 0:01:00]} 16. Bxe3 {[%clk 0:01:07]}  Bc8 {[%clk 0:01:00]} 17. a4 {[%clk 0:01:02]}  e5 {[%clk 0:00:58]} 18. a5 {[%clk 0:00:58]}  Ng4 {[%clk 0:00:57]} 19. a6 {[%clk 0:00:52]}  Nxe3 {[%clk 0:00:27]} 20. axb7 {[%clk 0:00:45]}  Bxb7 {[%clk 0:00:28]} 21. fxe3 {[%clk 0:00:45]}  Bc5 {[%clk 0:00:24]} 22. Rxb7 {[%clk 0:00:43]}  Bxe3+ {[%clk 0:00:24]} 23. Kf1 {[%clk 0:00:43]}  O-O {[%clk 0:00:24]} 24. Rdd7 {[%clk 0:00:32]}  a5 {[%clk 0:00:20]} 25. Bxc6 {[%clk 0:00:32]}  Bd4 {[%clk 0:00:20]} 26. Na4 {[%clk 0:00:24]}  Ra6 {[%clk 0:00:20]} 27. Bd5 {[%clk 0:00:23]}  Rf6+ {[%clk 0:00:20]} 28. Ke1 {[%clk 0:00:20]}  g6 {[%clk 0:00:21]} 29. e4 {[%clk 0:00:19]}  Kg7 {[%clk 0:00:20]} 30. c3 {[%clk 0:00:17]}  Bf2+ {[%clk 0:00:20]} 31. Ke2 {[%clk 0:00:18]}  Bxg3 {[%clk 0:00:21]} 32. Kd3 {[%clk 0:00:17]}  g5 {[%clk 0:00:21]} 33. Nc5 {[%clk 0:00:16]}  Kg6 {[%clk 0:00:21]} 34. Rdc7 {[%clk 0:00:11]}  g4 {[%clk 0:00:19]} 35. Nd7 {[%clk 0:00:11]}  Rf3+ {[%clk 0:00:19]} 36. Kc4 {[%clk 0:00:11]}  Rh8 {[%clk 0:00:17]} 37. Bxf7+ {[%clk 0:00:10]}  Rxf7 {[%clk 0:00:15]} 38. Nxe5+ {[%clk 0:00:08]}  Bxe5 {[%clk 0:00:16]} 39. Rxf7 {[%clk 0:00:08]}  g3 {[%clk 0:00:17]} 40. Rf5 {[%clk 0:00:06]}  g2 {[%clk 0:00:12]} 41. Rb6+ {[%clk 0:00:07]}  Kg7 {[%clk 0:00:08]} 42. Rg5+ {[%clk 0:00:07]}  Kf7 {[%clk 0:00:08]} 43. Rxg2 {[%clk 0:00:08]}  Rc8+ {[%clk 0:00:09]} 44. Kd5 {[%clk 0:00:08]}  Bxc3 {[%clk 0:00:08]} 45. Rb7+ {[%clk 0:00:08]}  Kf8 {[%clk 0:00:08]} 46. Rf2+ {[%clk 0:00:07]}  Ke8 {[%clk 0:00:08]} 47. Rg2 {[%clk 0:00:07]}  a4 {[%clk 0:00:06]} 48. Rg8# {[%clk 0:00:06]} 1-0


[Site "https://www.chess.com"]

[Event "Titled Tuesday Blitz May 03 Early 2022"]
[White "Janaszak, Dawid"]
[Black "Le Ruyet, Leopold"]
[WhiteFideId "1119206"]
[BlackFideId "645923"]
[WhiteElo "2199"]
[BlackElo "2276"]
[Result "1-0"]
[Round "03"]
[TimeControl "180+1"]
[Date "2022.05.03"]
[WhiteClock "0:00:49"]
[BlackClock "0:00:09"]

1. e4 {[%clk 0:03:00]}  c5 {[%clk 0:02:59]} 2. Nc3 {[%clk 0:02:59]}  Nc6 {[%clk 0:03:00]} 3. f4 {[%clk 0:02:58]}  e5 {[%clk 0:02:59]} 4. fxe5 {[%clk 0:02:55]}  Nxe5 {[%clk 0:02:57]} 5. Nf3 {[%clk 0:02:55]}  d6 {[%clk 0:02:54]} 6. Nxe5 {[%clk 0:02:48]}  dxe5 {[%clk 0:02:55]} 7. Bc4 {[%clk 0:02:47]}  Nf6 {[%clk 0:02:55]} 8. d3 {[%clk 0:02:42]}  Be7 {[%clk 0:02:54]} 9. O-O {[%clk 0:02:42]}  O-O {[%clk 0:02:52]} 10. Qe1 {[%clk 0:02:41]}  a6 {[%clk 0:02:50]} 11. a4 {[%clk 0:02:41]}  Ne8 {[%clk 0:02:37]} 12. Qg3 {[%clk 0:02:35]}  Bd6 {[%clk 0:02:20]} 13. Nd5 {[%clk 0:02:28]}  Be6 {[%clk 0:02:18]} 14. Bg5 {[%clk 0:02:28]}  Qb8 {[%clk 0:01:57]} 15. Ne7+ {[%clk 0:01:59]}  Bxe7 {[%clk 0:01:46]} 16. Bxe7 {[%clk 0:01:59]}  Bxc4 {[%clk 0:01:42]} 17. dxc4 {[%clk 0:01:49]}  Qc7 {[%clk 0:01:37]} 18. Bxf8 {[%clk 0:01:48]}  Kxf8 {[%clk 0:01:38]} 19. Rad1 {[%clk 0:01:46]}  Nf6 {[%clk 0:01:29]} 20. Rf5 {[%clk 0:01:36]}  Re8 {[%clk 0:01:26]} 21. Qd3 {[%clk 0:01:31]}  Kg8 {[%clk 0:00:58]} 22. h3 {[%clk 0:01:31]}  Qc6 {[%clk 0:00:55]} 23. b3 {[%clk 0:01:26]}  Nxe4 {[%clk 0:00:50]} 24. Qd7 {[%clk 0:01:14]}  f6 {[%clk 0:00:42]} 25. Qxc6 {[%clk 0:01:10]}  bxc6 {[%clk 0:00:43]} 26. Rd7 {[%clk 0:01:08]}  g6 {[%clk 0:00:37]} 27. Rf3 {[%clk 0:01:07]}  f5 {[%clk 0:00:37]} 28. Rfd3 {[%clk 0:01:05]}  Nf6 {[%clk 0:00:23]} 29. Rd8 {[%clk 0:01:05]}  Kf7 {[%clk 0:00:18]} 30. Rxe8 {[%clk 0:01:04]}  Nxe8 {[%clk 0:00:18]} 31. Rd7+ {[%clk 0:01:04]}  Ke6 {[%clk 0:00:17]} 32. Ra7 {[%clk 0:01:03]}  e4 {[%clk 0:00:17]} 33. Kf2 {[%clk 0:01:02]}  f4 {[%clk 0:00:16]} 34. Rxa6 {[%clk 0:01:02]}  Kd6 {[%clk 0:00:15]} 35. Ra8 {[%clk 0:00:59]}  Kd7 {[%clk 0:00:13]} 36. a5 {[%clk 0:00:58]}  g5 {[%clk 0:00:10]} 37. Rxe8 {[%clk 0:00:48]}  Kxe8 {[%clk 0:00:09]} 38. a6 {[%clk 0:00:49]} 1-0


[Site "https://www.chess.com"]

[Event "Titled Tuesday Blitz May 03 Early 2022"]
[White "Jones, Gawain C B"]
[Black "Stevens, Christian"]
[WhiteFideId "409561"]
[BlackFideId "2604450"]
[WhiteElo "2657"]
[BlackElo "2499"]
[Result "1-0"]
[Round "03"]
[TimeControl "180+1"]
[Date "2022.05.03"]
[WhiteClock "0:01:35"]
[BlackClock "0:00:01"]

1. d4 {[%clk 0:03:00]}  Nf6 {[%clk 0:02:52]} 2. Bg5 {[%clk 0:03:00]}  Ne4 {[%clk 0:02:50]} 3. h4 {[%clk 0:02:59]}  d5 {[%clk 0:02:49]} 4. Nd2 {[%clk 0:02:58]}  Bf5 {[%clk 0:02:45]} 5. e3 {[%clk 0:02:58]}  h6 {[%clk 0:02:17]} 6. Bf4 {[%clk 0:02:57]}  e6 {[%clk 0:02:11]} 7. g4 {[%clk 0:02:54]}  Bh7 {[%clk 0:02:07]} 8. Nxe4 {[%clk 0:02:54]}  Bxe4 {[%clk 0:02:05]} 9. f3 {[%clk 0:02:54]}  Bh7 {[%clk 0:02:03]} 10. Bd3 {[%clk 0:02:54]}  Bxd3 {[%clk 0:02:00]} 11. Qxd3 {[%clk 0:02:54]}  c6 {[%clk 0:01:51]} 12. O-O-O {[%clk 0:02:53]}  Nd7 {[%clk 0:01:42]} 13. Nh3 {[%clk 0:02:43]}  Qa5 {[%clk 0:01:21]} 14. Kb1 {[%clk 0:02:41]}  Qb5 {[%clk 0:01:06]} 15. Qxb5 {[%clk 0:02:36]}  cxb5 {[%clk 0:01:06]} 16. e4 {[%clk 0:02:37]}  dxe4 {[%clk 0:00:40]} 17. fxe4 {[%clk 0:02:38]}  Nf6 {[%clk 0:00:38]} 18. Nf2 {[%clk 0:02:37]}  O-O-O {[%clk 0:00:38]} 19. Rh3 {[%clk 0:02:33]}  b4 {[%clk 0:00:37]} 20. Be5 {[%clk 0:02:25]}  Nd7 {[%clk 0:00:36]} 21. Bh2 {[%clk 0:02:24]}  Nb6 {[%clk 0:00:24]} 22. c4 {[%clk 0:02:16]}  Be7 {[%clk 0:00:12]} 23. c5 {[%clk 0:02:16]}  Nc4 {[%clk 0:00:10]} 24. Kc2 {[%clk 0:02:02]}  e5 {[%clk 0:00:09]} 25. Kb3 {[%clk 0:01:54]}  Na5+ {[%clk 0:00:08]} 26. Ka4 {[%clk 0:01:54]}  Nc6 {[%clk 0:00:08]} 27. d5 {[%clk 0:01:52]}  Nd4 {[%clk 0:00:06]} 28. Nd3 {[%clk 0:01:48]}  b5+ {[%clk 0:00:04]} 29. Kxb4 {[%clk 0:01:38]}  Kb7 {[%clk 0:00:03]} 30. Bxe5 {[%clk 0:01:37]}  Bf6 {[%clk 0:00:01]} 31. Bxd4 {[%clk 0:01:35]} 1-0


[Site "https://www.chess.com"]

[Event "Titled Tuesday Blitz May 03 Early 2022"]
[White "Keller, Peter"]
[Black "Zia, Tahsin Tajwar"]
[WhiteFideId "1272105"]
[BlackFideId "10211888"]
[WhiteElo "2275"]
[BlackElo "1800"]
[Result "1-0"]
[Round "03"]
[TimeControl "180+1"]
[Date "2022.05.03"]
[WhiteClock "0:01:01"]
[BlackClock "0:00:19"]

1. e4 {[%clk 0:03:00]}  c6 {[%clk 0:02:15]} 2. d4 {[%clk 0:02:58]}  d5 {[%clk 0:02:11]} 3. exd5 {[%clk 0:02:54]}  cxd5 {[%clk 0:02:10]} 4. Bd3 {[%clk 0:02:48]}  Nc6 {[%clk 0:02:09]} 5. c3 {[%clk 0:02:45]}  Nf6 {[%clk 0:02:02]} 6. Bf4 {[%clk 0:02:43]}  Bg4 {[%clk 0:01:54]} 7. Qb3 {[%clk 0:02:41]}  Qd7 {[%clk 0:01:47]} 8. Nd2 {[%clk 0:02:40]}  e6 {[%clk 0:01:37]} 9. Ngf3 {[%clk 0:02:34]}  Bd6 {[%clk 0:01:32]} 10. Bxd6 {[%clk 0:02:28]}  Qxd6 {[%clk 0:01:33]} 11. O-O {[%clk 0:02:27]}  O-O {[%clk 0:01:30]} 12. Rae1 {[%clk 0:02:17]}  Bxf3 {[%clk 0:01:19]} 13. Nxf3 {[%clk 0:02:13]}  Qc7 {[%clk 0:01:19]} 14. Ne5 {[%clk 0:02:00]}  Nxe5 {[%clk 0:01:16]} 15. Rxe5 {[%clk 0:01:27]}  Nd7 {[%clk 0:01:11]} 16. Rh5 {[%clk 0:01:22]}  g6 {[%clk 0:01:11]} 17. Rh3 {[%clk 0:01:20]}  Kg7 {[%clk 0:01:08]} 18. Qd1 {[%clk 0:01:16]}  Qb6 {[%clk 0:00:58]} 19. Qd2 {[%clk 0:01:15]}  h5 {[%clk 0:00:45]} 20. g4 {[%clk 0:01:13]}  Nf6 {[%clk 0:00:42]} 21. gxh5 {[%clk 0:01:11]}  Rh8 {[%clk 0:00:41]} 22. h6+ {[%clk 0:01:05]}  Kh7 {[%clk 0:00:39]} 23. Rf3 {[%clk 0:01:02]}  Qd8 {[%clk 0:00:30]} 24. Qf4 {[%clk 0:01:01]}  Nh5 {[%clk 0:00:19]} 25. Qxf7+ {[%clk 0:01:00]}  Kxh6 {[%clk 0:00:19]} 26. Qxg6# {[%clk 0:01:01]} 1-0


[Site "https://www.chess.com"]

[Event "Titled Tuesday Blitz May 03 Early 2022"]
[White "Kosteniuk, Alexandra"]
[Black "Petrova, Irina"]
[WhiteFideId "4128125"]
[BlackFideId "14124122"]
[WhiteElo "2469"]
[BlackElo "1993"]
[Result "1-0"]
[Round "03"]
[TimeControl "180+1"]
[Date "2022.05.03"]
[WhiteClock "0:00:07"]
[BlackClock "0:00:01"]

1. e4 {[%clk 0:03:00]}  d6 {[%clk 0:02:59]} 2. d4 {[%clk 0:03:00]}  Nf6 {[%clk 0:02:59]} 3. Nc3 {[%clk 0:03:01]}  e5 {[%clk 0:02:59]} 4. Nf3 {[%clk 0:02:59]}  Nbd7 {[%clk 0:02:58]} 5. Bc4 {[%clk 0:02:58]}  Be7 {[%clk 0:02:58]} 6. a4 {[%clk 0:02:58]}  O-O {[%clk 0:02:58]} 7. O-O {[%clk 0:02:58]}  c6 {[%clk 0:02:58]} 8. Ba2 {[%clk 0:02:58]}  h6 {[%clk 0:02:58]} 9. Re1 {[%clk 0:02:58]}  Re8 {[%clk 0:02:58]} 10. h3 {[%clk 0:02:57]}  Bf8 {[%clk 0:02:58]} 11. Nh4 {[%clk 0:02:56]}  exd4 {[%clk 0:02:57]} 12. Qxd4 {[%clk 0:02:56]}  d5 {[%clk 0:02:55]} 13. e5 {[%clk 0:02:41]}  Bc5 {[%clk 0:02:42]} 14. Qf4 {[%clk 0:02:40]}  Nf8 {[%clk 0:01:58]} 15. Nf3 {[%clk 0:02:16]}  Ng6 {[%clk 0:01:55]} 16. Qh2 {[%clk 0:02:16]}  Nd7 {[%clk 0:01:16]} 17. h4 {[%clk 0:02:14]}  Qc7 {[%clk 0:00:58]} 18. Qg3 {[%clk 0:01:59]}  Ndxe5 {[%clk 0:00:46]} 19. Kf1 {[%clk 0:01:38]}  Bd7 {[%clk 0:00:33]} 20. h5 {[%clk 0:01:37]}  Nxf3 {[%clk 0:00:31]} 21. Rxe8+ {[%clk 0:01:28]}  Rxe8 {[%clk 0:00:32]} 22. gxf3 {[%clk 0:01:24]}  Bd6 {[%clk 0:00:27]} 23. Qg2 {[%clk 0:00:58]}  Nh4 {[%clk 0:00:26]} 24. Qh1 {[%clk 0:00:59]}  Nf5 {[%clk 0:00:25]} 25. Bd2 {[%clk 0:00:40]}  Nd4 {[%clk 0:00:24]} 26. Qg2 {[%clk 0:00:36]}  Qc8 {[%clk 0:00:24]} 27. Re1 {[%clk 0:00:27]}  Rxe1+ {[%clk 0:00:22]} 28. Kxe1 {[%clk 0:00:27]}  Nxc2+ {[%clk 0:00:21]} 29. Kd1 {[%clk 0:00:27]}  Nd4 {[%clk 0:00:20]} 30. Bxh6 {[%clk 0:00:26]}  Nf5 {[%clk 0:00:19]} 31. Bg5 {[%clk 0:00:26]}  Qe8 {[%clk 0:00:19]} 32. Bb1 {[%clk 0:00:24]}  Qe5 {[%clk 0:00:15]} 33. Bd2 {[%clk 0:00:19]}  Qd4 {[%clk 0:00:13]} 34. h6 {[%clk 0:00:19]}  Nxh6 {[%clk 0:00:12]} 35. Qg5 {[%clk 0:00:16]}  f6 {[%clk 0:00:08]} 36. Qg6 {[%clk 0:00:14]}  Kf8 {[%clk 0:00:07]} 37. Bd3 {[%clk 0:00:11]}  Bf4 {[%clk 0:00:06]} 38. Ne2 {[%clk 0:00:09]}  Qxb2 {[%clk 0:00:04]} 39. Bxf4 {[%clk 0:00:08]}  Qa1+ {[%clk 0:00:04]} 40. Bc1 {[%clk 0:00:08]}  Qxa4+ {[%clk 0:00:04]} 41. Bc2 {[%clk 0:00:08]}  Qh4 {[%clk 0:00:02]} 42. Qg3 {[%clk 0:00:08]}  Qh1+ {[%clk 0:00:02]} 43. Kd2 {[%clk 0:00:07]}  Nf5 {[%clk 0:00:01]} 44. Qb8+ {[%clk 0:00:07]} 1-0


[Site "https://www.chess.com"]